[Event "Asian Continental-ch Open 2019"]
[Site "XingTai"]
[Date "2019.06.07"]
[Round "1.12"]
[White "Battulga, Namkhai"]
[Black "Narayanan.S.L"]
[Result "0-1"]
[ECO "B92"]
[WhiteElo "2425"]
[BlackElo "2603"]
[Annotator "ChessBase"]
[PlyCount "82"]
[EventDate "2019.06.06"]
[EventType "swiss"]
[EventCountry "CHN"]
[SourceTitle "playchess.com"]
[Source "ChessBase"]
[SourceQuality "1"]
[TimeControl "40/5400+30:1800+30"]

1. e4 {[%emt 0:00:00]} c5 {[%emt 0:00:00]} 2. Nf3 {[%emt 0:00:00]} d6 {[%emt 0:00:00]} 3. d4 {[%emt 0:00:16]} cxd4 {[%emt 0:00:00]} 4. Nxd4 {[%emt 0:00:06]} Nf6 {[%emt 0:00:00]} 5. Nc3 {[%emt 0:00:08]} a6 {[%emt 0:00:11]} 6. Be2 {[%emt 0:00:36]} e5 {[%emt 0:00:18]} 7. Nb3 {[%emt 0:00:09]} Be7 {[%emt 0:00:57]} 8. O-O {[%emt 0:00:36]} O-O {[%emt 0:00:39]} 9. Be3 {[%emt 0:01:02]} Be6 {[%emt 0:01:38]} 10. Qd2 {[%emt 0:00:32]} Nbd7 {[%emt 0:05:36]} 11. a4 {[%emt 0:00:54]} Rc8 {[%emt 0:08:10]} 12. Rfd1 {[%emt 0:02:50]} Qc7 {[%emt 0:09:57]} 13. a5 {[%emt 0:00:48]} Rfd8 {[%emt 0:04:39]} 14. Qe1 {[%emt 0:00:53]} h6 {[%emt 0:08:13]} 15. h3 {[%emt 0:04:11]} Qc6 {[%emt 0:20:12]} 16. Bf3 {[%emt 0:01:22]} Nf8 {[%emt 0:00:49]} 17. Bb6 {[%emt 0:05:30]} Re8 {[%emt 0:00:04]} 18. Kh2 {[%emt 0:06:40]} N8h7 {[%emt 0:02:13]} 19. Rd2 {[%emt 0:12:35]} Ng5 {[%emt 0:00:51]} 20. Qe3 {[%emt 0:01:28]} Nxf3+ {[%emt 0:08:07]} 21. Qxf3 {[%emt 0:00:10]} Nd7 {[%emt 0:00:11]} 22. Nd5 {[%emt 0:05:46]} Bxd5 {[%emt 0:01:42]} 23. exd5 {[%emt 0:00:07]} Qb5 {[%emt 0:01:34]} 24. Be3 {[%emt 0:00:10]} Nf6 {[%emt 0:01:21]} 25. Qd1 {[%emt 0:03:32]} Rc4 {[%emt 0:02:57]} 26. Rd3 {[%emt 0:06:44]} Rec8 {[%emt 0:02:08]} 27. c3 {[%emt 0:01:09]} Ra4 {[%emt 0:05:31]} 28. Rxa4 {[%emt 0:05:39]} Qxa4 {[%emt 0:00:04]} 29. Bb6 {[%emt 0:00:32]} Nd7 {[%emt 0:06:02]} 30. Be3 {[%emt 0:03:44]} Bd8 {[%emt 0:01:14]} 31. g3 {[%emt 0:05:42]} Rc4 {[%emt 0:06:14]} 32. Kg2 {[%emt 0:10:35]} Bxa5 {[%emt 0:01:11]} 33. Nxa5 {[%emt 0:00:08]} Qxa5 {[%emt 0:00:03]} 34. b3 {[%emt 0:00:11]} Rc7 {[%emt 0:00:18]} 35. Qg4 {[%emt 0:00:34]} Nf6 {[%emt 0:00:37]} 36. Qh4 {[%emt 0:00:48]} e4 {[%emt 0:00:20]} 37. Rd1 {[%emt 0:00:53]} Qb5 {[%emt 0:00:12]} 38. Rd4 {[%emt 0:03:42]} Rxc3 {[%emt 0:01:15]} 39. Bxh6 {[%emt 0:01:11]} Qe2 {[%emt 0:00:42]} 40. Qg5 {[%emt 0:00:00]} Nh5 {[%emt 0:00:00]} 41. Rc4 {[%emt 0:13:10]} Rxg3+ {[%emt 0:01:28]} 0-1

[Event "Asian Continental-ch Open 2019"]
[Site "XingTai"]
[Date "2019.06.07"]
[Round "1.13"]
[White "Vaibhav, Suri"]
[Black "Zou, Chen"]
[Result "0-1"]
[ECO "C54"]
[WhiteElo "2599"]
[BlackElo "2415"]
[Annotator "ChessBase"]
[PlyCount "72"]
[EventDate "2019.06.06"]
[EventType "swiss"]
[EventCountry "CHN"]
[SourceTitle "playchess.com"]
[Source "ChessBase"]
[SourceQuality "1"]
[TimeControl "40/5400+30:1800+30"]

1. e4 {[%emt 0:00:00]} e5 {[%emt 0:00:09]} 2. Nf3 {[%emt 0:00:00]} Nc6 {[%emt 0:00:05]} 3. Bc4 {[%emt 0:00:02]} Bc5 {[%emt 0:00:05]} 4. O-O {[%emt 0:00:21]} Nf6 {[%emt 0:00:29]} 5. d3 {[%emt 0:00:05]} d6 {[%emt 0:00:06]} 6. c3 {[%emt 0:00:06]} a6 {[%emt 0:00:06]} 7. a4 {[%emt 0:00:19]} Ba7 {[%emt 0:00:06]} 8. Na3 {[%emt 0:01:02]} h6 {[%emt 0:02:33]} 9. Nc2 {[%emt 0:00:47]} O-O {[%emt 0:00:31]} 10. Be3 {[%emt 0:04:45]} Re8 {[%emt 0:02:08]} 11. b4 {[%emt 0:06:57]} Ne7 {[%emt 0:07:28]} 12. Re1 {[%emt 0:08:02]} Bxe3 {[%emt 0:04:58]} 13. Nxe3 {[%emt 0:00:37]} Ng6 {[%emt 0:11:26]} 14. Qb3 {[%emt 0:07:12]} Be6 {[%emt 0:02:16]} 15. Bxe6 {[%emt 0:06:31]} Rxe6 {[%emt 0:00:28]} 16. a5 {[%emt 0:00:16]} Qd7 {[%emt 0:02:59]} 17. c4 {[%emt 0:08:05]} Ree8 {[%emt 0:06:35]} 18. g3 {[%emt 0:05:17]} c6 {[%emt 0:13:56]} 19. Nf5 {[%emt 0:08:22]} Ne7 {[%emt 0:06:04]} 20. Ne3 {[%emt 0:02:48]} Ng6 {[%emt 0:02:01]} 21. Rad1 {[%emt 0:03:03]} Rad8 {[%emt 0:13:59]} 22. Kg2 {[%emt 0:04:21]} d5 {[%emt 0:01:33]} 23. c5 {[%emt 0:02:37]} Qe6 {[%emt 0:05:48]} 24. Qc2 {[%emt 0:02:01]} Rd7 {[%emt 0:00:42]} 25. Nf5 {[%emt 0:04:02]} Red8 {[%emt 0:00:58]} 26. Nd6 {[%emt 0:04:51]} Nf4+ {[%emt 0:03:46]} 27. Kh1 {[%emt 0:04:03]} Qh3 {[%emt 0:00:21]} 28. Rg1 {[%emt 0:07:10]} Nxd3 {[%emt 0:00:35]} 29. Rxd3 {[%emt 0:06:30]} dxe4 {[%emt 0:00:09]} 30. Nxe5 {[%emt 0:00:32]} exd3 {[%emt 0:00:26]} 31. Qc4 {[%emt 0:00:12]} Qh5 {[%emt 0:01:25]} 32. Qd4 {[%emt 0:04:06]} Re7 {[%emt 0:01:36]} 33. f4 {[%emt 0:00:37]} Rxe5 {[%emt 0:00:45]} 34. fxe5 {[%emt 0:00:25]} Qf3+ {[%emt 0:00:04]} 35. Rg2 {[%emt 0:00:03]} Ng4 {[%emt 0:00:04]} 36. Qf4 {[%emt 0:00:59]} Nf2+ {[%emt 0:00:03]} 0-1

[Event "Asian Continental-ch Open 2019"]
[Site "XingTai"]
[Date "2019.06.07"]
[Round "1.14"]
[White "Garcia, Jan Emmanuel"]
[Black "Aravindh, Chithambaram VR."]
[Result "1/2-1/2"]
[ECO "D79"]
[WhiteElo "2413"]
[BlackElo "2598"]
[Annotator "ChessBase"]
[PlyCount "88"]
[EventDate "2019.06.06"]
[EventType "swiss"]
[EventCountry "CHN"]
[SourceTitle "playchess.com"]
[Source "ChessBase"]
[SourceQuality "1"]
[TimeControl "40/5400+30:1800+30"]

1. Nf3 {[%emt 0:00:00]} d5 {[%emt 0:00:00]} 2. g3 {[%emt 0:00:00]} g6 {[%emt 0:00:00]} 3. Bg2 {[%emt 0:00:00]} Bg7 {[%emt 0:00:01]} 4. d4 {[%emt 0:00:02]} Nf6 {[%emt 0:00:06]} 5. c4 {[%emt 0:01:27]} c6 {[%emt 0:00:16]} 6. cxd5 {[%emt 0:01:05]} cxd5 {[%emt 0:00:10]} 7. Ne5 {[%emt 0:00:21]} O-O {[%emt 0:00:20]} 8. O-O {[%emt 0:06:05]} e6 {[%emt 0:00:24]} 9. Nc3 {[%emt 0:00:53]} Bd7 {[%emt 0:02:07]} 10. e3 {[%emt 0:15:34]} Nc6 {[%emt 0:00:55]} 11. Nxd7 {[%emt 0:01:46]} Qxd7 {[%emt 0:02:23]} 12. b3 {[%emt 0:01:32]} Rfc8 {[%emt 0:12:36]} 13. Bb2 {[%emt 0:03:21]} Ne7 {[%emt 0:00:10]} 14. Qd3 {[%emt 0:00:52]} Nf5 {[%emt 0:01:34]} 15. Rfc1 {[%emt 0:07:02]} h5 {[%emt 0:00:31]} 16. h3 {[%emt 0:06:52]} Bf8 {[%emt 0:04:47]} 17. Rc2 {[%emt 0:05:49]} Rc6 {[%emt 0:02:35]} 18. Rac1 {[%emt 0:01:11]} Rac8 {[%emt 0:00:16]} 19. Ne2 {[%emt 0:01:21]} Bd6 {[%emt 0:01:36]} 20. Rxc6 {[%emt 0:00:21]} Rxc6 {[%emt 0:00:16]} 21. Rxc6 {[%emt 0:02:17]} Qxc6 {[%emt 0:00:09]} 22. Nc3 {[%emt 0:06:14]} a6 {[%emt 0:01:38]} 23. e4 {[%emt 0:08:17]} dxe4 {[%emt 0:00:19]} 24. Nxe4 {[%emt 0:00:15]} Nxe4 {[%emt 0:00:30]} 25. Bxe4 {[%emt 0:02:35]} Qc8 {[%emt 0:03:59]} 26. Qc3 {[%emt 0:08:07]} Qxc3 {[%emt 0:01:52]} 27. Bxc3 {[%emt 0:00:07]} b6 {[%emt 0:00:10]} 28. Kg2 {[%emt 0:07:46]} Ne7 {[%emt 0:01:52]} 29. Bb7 {[%emt 0:00:31]} a5 {[%emt 0:01:23]} 30. Kf3 {[%emt 0:01:45]} Kf8 {[%emt 0:03:54]} 31. a4 {[%emt 0:00:54]} Ke8 {[%emt 0:00:35]} 32. Bd2 {[%emt 0:01:18]} f6 {[%emt 0:11:10]} 33. Be3 {[%emt 0:00:58]} Bc7 {[%emt 0:01:16]} 34. Ba6 {[%emt 0:00:37]} Kf7 {[%emt 0:06:08]} 35. Bc4 {[%emt 0:00:15]} g5 {[%emt 0:01:24]} 36. g4 {[%emt 0:00:34]} hxg4+ {[%emt 0:01:59]} 37. hxg4 {[%emt 0:03:30]} Nd5 {[%emt 0:00:15]} 38. Bxd5 {[%emt 0:01:23]} exd5 {[%emt 0:00:07]} 39. Ke2 {[%emt 0:00:14]} Ke6 {[%emt 0:00:31]} 40. f3 {[%emt 0:00:00]} Bd8 {[%emt 0:00:00]} 41. Kd3 {[%emt 0:00:13]} f5 {[%emt 0:01:18]} 42. Bg1 {[%emt 0:00:14]} f4 {[%emt 0:00:41]} 43. Bf2 {[%emt 0:00:09]} Be7 {[%emt 0:00:04]} 44. Be1 {[%emt 0:00:08]} Bb4 {[%emt 0:00:08]} 1/2-1/2

[Event "Asian Continental-ch Open 2019"]
[Site "XingTai"]
[Date "2019.06.07"]
[Round "1.15"]
[White "Idani, Pouya"]
[Black "Zhang, Ziji"]
[Result "1/2-1/2"]
[ECO "C70"]
[WhiteElo "2597"]
[BlackElo "2408"]
[Annotator "ChessBase"]
[PlyCount "39"]
[EventDate "2019.06.06"]
[EventType "swiss"]
[EventCountry "CHN"]
[SourceTitle "playchess.com"]
[Source "ChessBase"]
[SourceQuality "1"]
[TimeControl "40/5400+30:1800+30"]

1. e4 {[%emt 0:00:00]} e5 {[%emt 0:00:00]} 2. Nf3 {[%emt 0:00:00]} Nc6 {[%emt 0:00:00]} 3. Bb5 {[%emt 0:00:00]} a6 {[%emt 0:00:00]} 4. Ba4 {[%emt 0:00:00]} Nge7 {[%emt 0:01:58]} 5. c3 {[%emt 0:00:00]} g6 {[%emt 0:00:07]} 6. d4 {[%emt 0:01:37]} exd4 {[%emt 0:00:10]} 7. cxd4 {[%emt 0:00:04]} b5 {[%emt 0:00:07]} 8. d5 {[%emt 0:00:09]} bxa4 {[%emt 0:03:52]} 9. dxc6 {[%emt 0:00:19]} Nxc6 {[%emt 0:00:16]} 10. Qxa4 {[%emt 0:00:54]} Bg7 {[%emt 0:02:02]} 11. O-O {[%emt 0:00:16]} O-O {[%emt 0:01:05]} 12. Nc3 {[%emt 0:00:04]} Ne7 {[%emt 0:05:31]} 13. Rd1 {[%emt 0:10:25]} d6 {[%emt 0:04:37]} 14. e5 {[%emt 0:02:53]} Bb7 {[%emt 0:17:14]} 15. exd6 {[%emt 0:02:38]} cxd6 {[%emt 0:00:05]} 16. Nd4 {[%emt 0:10:17]} Qc8 {[%emt 0:12:38]} 17. Bf4 {[%emt 0:03:24]} Rd8 {[%emt 0:03:50]} 18. Rac1 {[%emt 0:05:29]} Qg4 {[%emt 0:04:52]} 19. Bg3 {[%emt 0:00:29]} h5 {[%emt 0:00:45]} 20. f3 {[%emt 0:28:44]} 1/2-1/2

[Event "Asian Continental-ch Open 2019"]
[Site "XingTai"]
[Date "2019.06.07"]
[Round "1.16"]
[White "Harshavardhan G B"]
[Black "Karthikeyan, Murali"]
[Result "0-1"]
[ECO "E11"]
[WhiteElo "2406"]
[BlackElo "2593"]
[Annotator "ChessBase"]
[PlyCount "82"]
[EventDate "2019.06.06"]
[EventType "swiss"]
[EventCountry "CHN"]
[SourceTitle "playchess.com"]
[Source "ChessBase"]
[SourceQuality "1"]
[TimeControl "40/5400+30:1800+30"]

1. d4 {[%emt 0:00:23]} Nf6 {[%emt 0:00:00]} 2. c4 {[%emt 0:00:08]} Nc6 {[%emt 0:00:00]} 3. Nf3 {[%emt 0:00:07]} e6 {[%emt 0:00:00]} 4. g3 {[%emt 0:03:14]} Bb4+ {[%emt 0:00:47]} 5. Bd2 {[%emt 0:02:02]} Qe7 {[%emt 0:00:13]} 6. Nc3 {[%emt 0:00:04]} O-O {[%emt 0:01:35]} 7. Bg2 {[%emt 0:00:17]} d6 {[%emt 0:01:18]} 8. a3 {[%emt 0:00:24]} Bxc3 {[%emt 0:00:12]} 9. Bxc3 {[%emt 0:00:06]} Ne4 {[%emt 0:07:37]} 10. Rc1 {[%emt 0:02:12]} a5 {[%emt 0:08:04]} 11. d5 {[%emt 0:04:56]} Nd8 {[%emt 0:07:53]} 12. O-O {[%emt 0:01:50]} a4 {[%emt 0:04:55]} 13. Nd2 {[%emt 0:01:32]} Nxc3 {[%emt 0:12:28]} 14. Rxc3 {[%emt 0:00:19]} e5 {[%emt 0:02:55]} 15. f4 {[%emt 0:01:56]} f5 {[%emt 0:08:36]} 16. e4 {[%emt 0:16:40]} fxe4 {[%emt 0:12:30]} 17. Bxe4 {[%emt 0:00:00]} g6 {[%emt 0:06:58]} 18. Qc2 {[%emt 0:00:00]} Bh3 {[%emt 0:03:03]} 19. Rf2 {[%emt 0:00:00]} Qf6 {[%emt 0:05:59]} 20. Rcf3 {[%emt 0:00:55]} Nf7 {[%emt 0:00:31]} 21. c5 {[%emt 0:18:22]} Bg4 {[%emt 0:01:53]} 22. fxe5 {[%emt 0:00:36]} Qxe5 {[%emt 0:00:07]} 23. Rf4 {[%emt 0:00:07]} Ng5 {[%emt 0:00:22]} 24. Rxf8+ {[%emt 0:02:12]} Rxf8 {[%emt 0:00:04]} 25. Rxf8+ {[%emt 0:00:10]} Kxf8 {[%emt 0:00:05]} 26. cxd6 {[%emt 0:03:45]} Qd4+ {[%emt 0:03:49]} 27. Kf1 {[%emt 0:08:44]} Qe3 {[%emt 0:00:45]} 28. Nc4 {[%emt 0:04:08]} Bh3+ {[%emt 0:00:44]} 29. Bg2 {[%emt 0:02:13]} Bxg2+ {[%emt 0:00:06]} 30. Qxg2 {[%emt 0:00:05]} Qc1+ {[%emt 0:00:04]} 31. Kf2 {[%emt 0:00:07]} Qxc4 {[%emt 0:00:06]} 32. dxc7 {[%emt 0:00:44]} Qxc7 {[%emt 0:00:08]} 33. Ke3 {[%emt 0:00:59]} Nf7 {[%emt 0:00:43]} 34. Qd2 {[%emt 0:00:51]} Qe5+ {[%emt 0:01:31]} 35. Kf2 {[%emt 0:00:31]} Nd6 {[%emt 0:00:55]} 36. Qb4 {[%emt 0:00:08]} Qxd5 {[%emt 0:02:21]} 37. Qxa4 {[%emt 0:00:06]} Qd2+ {[%emt 0:00:10]} 38. Kf1 {[%emt 0:01:16]} Qxb2 {[%emt 0:01:49]} 39. Qd7 {[%emt 0:00:50]} Qb1+ {[%emt 0:01:02]} 40. Kg2 {[%emt 0:00:00]} Qc2+ {[%emt 0:00:00]} 41. Kg1 {[%emt 0:00:45]} Qc5+ {[%emt 0:00:39]} 0-1

[Event "Asian Continental-ch Open 2019"]
[Site "XingTai"]
[Date "2019.06.08"]
[Round "2.11"]
[White "Xu, Xiangyu"]
[Black "Krishna C R G"]
[Result "1/2-1/2"]
[ECO "D15"]
[WhiteElo "2583"]
[BlackElo "2481"]
[Annotator "ChessBase"]
[PlyCount "62"]
[EventDate "2019.06.06"]
[EventType "swiss"]
[EventCountry "CHN"]
[SourceTitle "playchess.com"]
[Source "ChessBase"]
[SourceQuality "1"]
[TimeControl "40/5400+30:1800+30"]

1. d4 {[%emt 0:00:00]} d5 {[%emt 0:00:00]} 2. c4 {[%emt 0:00:00]} c6 {[%emt 0:00:00]} 3. Nf3 {[%emt 0:02:06]} Nf6 {[%emt 0:00:00]} 4. Nc3 {[%emt 0:00:06]} a6 {[%emt 0:00:00]} 5. c5 {[%emt 0:01:54]} Nbd7 {[%emt 0:01:24]} 6. Bf4 {[%emt 0:00:20]} Nh5 {[%emt 0:00:07]} 7. Bd2 {[%emt 0:00:09]} g6 {[%emt 0:00:51]} 8. Qc2 {[%emt 0:20:49]} Bg7 {[%emt 0:04:09]} 9. g4 {[%emt 0:01:57]} Nhf6 {[%emt 0:00:13]} 10. g5 {[%emt 0:00:05]} Nh5 {[%emt 0:02:25]} 11. e4 {[%emt 0:00:11]} dxe4 {[%emt 0:08:03]} 12. Nxe4 {[%emt 0:00:20]} Nf8 {[%emt 0:00:45]} 13. Be3 {[%emt 0:39:16]} Bg4 {[%emt 0:08:08]} 14. Ne5 {[%emt 0:05:55]} Bf5 {[%emt 0:24:54]} 15. O-O-O {[%emt 0:05:58]} Qc7 {[%emt 0:17:03]} 16. Be2 {[%emt 0:14:24]} Ne6 {[%emt 0:03:38]} 17. Bxh5 {[%emt 0:01:40]} gxh5 {[%emt 0:09:25]} 18. Nxf7 {[%emt 0:00:05]} Rf8 {[%emt 0:02:14]} 19. Ne5 {[%emt 0:01:16]} Bxe5 {[%emt 0:00:30]} 20. dxe5 {[%emt 0:00:08]} Qxe5 {[%emt 0:00:07]} 21. f3 {[%emt 0:00:11]} Bg6 {[%emt 0:08:49]} 22. Rhf1 {[%emt 0:00:31]} Nxg5 {[%emt 0:01:05]} 23. Qd2 {[%emt 0:03:37]} Nxe4 {[%emt 0:07:04]} 24. fxe4 {[%emt 0:00:03]} Rxf1 {[%emt 0:00:31]} 25. Qd7+ {[%emt 0:00:03]} Kf7 {[%emt 0:00:04]} 26. Rxf1+ {[%emt 0:00:03]} Kg8 {[%emt 0:00:03]} 27. Qxb7 {[%emt 0:00:21]} Rb8 {[%emt 0:00:28]} 28. Bh6 {[%emt 0:00:56]} Bxe4 {[%emt 0:01:27]} 29. Qb3+ {[%emt 0:00:24]} e6 {[%emt 0:00:29]} 30. Qg3+ {[%emt 0:01:34]} Qxg3 {[%emt 0:00:02]} 31. hxg3 {[%emt 0:00:05]} Bf5 {[%emt 0:00:52]} 1/2-1/2

[Event "Asian Continental-ch Open 2019"]
[Site "XingTai"]
[Date "2019.06.08"]
[Round "2.12"]
[White "Aryan Chopra"]
[Black "Rahul Srivatshav P"]
[Result "1/2-1/2"]
[ECO "B12"]
[WhiteElo "2553"]
[BlackElo "2395"]
[Annotator "ChessBase"]
[PlyCount "84"]
[EventDate "2019.06.06"]
[EventType "swiss"]
[EventCountry "CHN"]
[SourceTitle "playchess.com"]
[Source "ChessBase"]
[SourceQuality "1"]
[TimeControl "40/5400+30:1800+30"]

1. e4 {[%emt 0:00:00]} c6 {[%emt 0:00:00]} 2. d4 {[%emt 0:00:00]} d5 {[%emt 0:00:00]} 3. e5 {[%emt 0:00:00]} Bf5 {[%emt 0:00:00]} 4. Be3 {[%emt 0:00:06]} e6 {[%emt 0:02:18]} 5. Nd2 {[%emt 0:00:07]} Nd7 {[%emt 0:00:27]} 6. Ngf3 {[%emt 0:00:24]} Qc7 {[%emt 0:04:40]} 7. Nh4 {[%emt 0:07:31]} Ne7 {[%emt 0:00:18]} 8. g4 {[%emt 0:00:08]} Bg6 {[%emt 0:02:09]} 9. Nxg6 {[%emt 0:04:22]} hxg6 {[%emt 0:05:57]} 10. f4 {[%emt 0:10:12]} c5 {[%emt 0:03:18]} 11. c3 {[%emt 0:00:13]} Nc6 {[%emt 0:03:18]} 12. Nf3 {[%emt 0:04:23]} Be7 {[%emt 0:16:07]} 13. a3 {[%emt 0:09:08]} O-O-O {[%emt 0:07:10]} 14. b4 {[%emt 0:05:52]} cxd4 {[%emt 0:07:02]} 15. cxd4 {[%emt 0:00:08]} a6 {[%emt 0:06:01]} 16. Rc1 {[%emt 0:10:20]} Kb8 {[%emt 0:04:39]} 17. Bd3 {[%emt 0:04:04]} b5 {[%emt 0:07:57]} 18. a4 {[%emt 0:03:46]} Qb7 {[%emt 0:00:25]} 19. axb5 {[%emt 0:02:12]} axb5 {[%emt 0:00:44]} 20. O-O {[%emt 0:10:12]} Na7 {[%emt 0:01:45]} 21. f5 {[%emt 0:05:56]} gxf5 {[%emt 0:01:11]} 22. gxf5 {[%emt 0:00:10]} Nb6 {[%emt 0:06:13]} 23. Ng5 {[%emt 0:03:10]} Bxg5 {[%emt 0:00:25]} 24. Bxg5 {[%emt 0:00:04]} Rc8 {[%emt 0:02:12]} 25. Qg4 {[%emt 0:03:40]} Rxc1 {[%emt 0:03:02]} 26. Bxc1 {[%emt 0:00:44]} Qc8 {[%emt 0:00:07]} 27. Kh1 {[%emt 0:09:26]} Qc3 {[%emt 0:04:03]} 28. Qxg7 {[%emt 0:00:14]} Qxd3 {[%emt 0:05:39]} 29. Qxh8+ {[%emt 0:00:05]} Kb7 {[%emt 0:00:12]} 30. Re1 {[%emt 0:03:32]} Qf3+ {[%emt 0:00:22]} 31. Kg1 {[%emt 0:00:01]} Qg4+ {[%emt 0:00:08]} 32. Kf2 {[%emt 0:01:18]} Qxf5+ {[%emt 0:00:15]} 33. Kg3 {[%emt 0:00:34]} Qd3+ {[%emt 0:04:03]} 34. Kh4 {[%emt 0:03:25]} Qxd4+ {[%emt 0:00:29]} 35. Kg3 {[%emt 0:01:04]} Qd3+ {[%emt 0:00:44]} 36. Kg2 {[%emt 0:00:47]} Qc2+ {[%emt 0:01:34]} 37. Kh1 {[%emt 0:00:26]} Qf2 {[%emt 0:00:13]} 38. Rg1 {[%emt 0:00:05]} Qf3+ {[%emt 0:00:16]} 39. Rg2 {[%emt 0:00:01]} Qf1+ {[%emt 0:00:49]} 40. Rg1 {[%emt 0:00:00]} Qf3+ {[%emt 0:00:00]} 41. Rg2 {[%emt 0:00:07]} Qf1+ {[%emt 0:00:40]} 42. Rg1 {[%emt 0:00:05]} Qf3+ {[%emt 0:34:08] Kg2 Qd3 Re1 Nc6} 1/2-1/2

[Event "Asian Continental-ch Open 2019"]
[Site "XingTai"]
[Date "2019.06.09"]
[Round "3.7"]
[White "Li, Di"]
[Black "Lu, Shanglei"]
[Result "0-1"]
[ECO "D23"]
[WhiteElo "2535"]
[BlackElo "2624"]
[Annotator "RC"]
[PlyCount "100"]
[EventDate "2019.06.06"]
[EventType "swiss"]
[EventCountry "CHN"]
[SourceTitle "playchess.com"]
[Source "ChessBase"]
[SourceQuality "1"]
[TimeControl "40/5400+30:1800+30"]

1. Nf3 {[%emt 0:00:00]} Nf6 {[%emt 0:00:00]} 2. d4 {[%emt 0:00:00]} d5 {[%emt 0:00:00]} 3. c4 {[%emt 0:00:00]} c6 {[%emt 0:00:00]} 4. Qc2 {[%emt 0:04:12]} dxc4 {[%emt 0:00:00]} 5. Qxc4 {[%emt 0:00:06]} Bf5 {[%emt 0:00:01]} 6. g3 {[%emt 0:00:19]} e6 {[%emt 0:00:05]} 7. Bg2 {[%emt 0:00:06]} Nbd7 {[%emt 0:00:09]} 8. O-O {[%emt 0:00:10]} Be7 {[%emt 0:00:04]} 9. e3 {[%emt 0:00:36]} O-O {[%emt 0:01:33]} 10. Qe2 {[%emt 0:00:22]} Qc7 {[%emt 0:04:33]} 11. Nc3 {[%emt 0:04:17]} Ne4 {[%emt 0:03:06]} 12. Nh4 {[%emt 0:07:27]} Bxh4 {[%emt 0:01:38]} 13. gxh4 {[%emt 0:00:37]} Nxc3 {[%emt 0:19:23]} 14. bxc3 {[%emt 0:00:07]} e5 {[%emt 0:00:15]} 15. e4 {[%emt 0:16:28]} Be6 {[%emt 0:01:41]} 16. Ba3 {[%emt 0:00:33]} Rfe8 {[%emt 0:03:52]} 17. d5 {[%emt 0:07:16]} cxd5 {[%emt 0:02:59]} 18. exd5 {[%emt 0:00:01]} Bf5 {[%emt 0:00:22]} 19. Qf3 {[%emt 0:01:08]} g6 {[%emt 0:01:36]} 20. Qg3 {[%emt 0:19:18]} Qc4 {[%emt 0:07:34]} 21. Rfe1 {[%emt 0:04:37]} Rac8 {[%emt 0:01:10]} 22. d6 {[%emt 0:07:37]} e4 {[%emt 0:10:21]} 23. Bc1 {[%emt 0:02:09]} Ne5 {[%emt 0:09:53]} 24. Be3 {[%emt 0:03:26]} Qxc3 {[%emt 0:07:38]} 25. Bxa7 {[%emt 0:00:51]} Nd3 {[%emt 0:02:58]} 26. Red1 {[%emt 0:01:10]} Rc6 {[%emt 0:02:07]} 27. Rab1 {[%emt 0:01:40]} Qa3 {[%emt 0:06:06]} 28. Be3 {[%emt 0:00:38]} Rxd6 {[%emt 0:00:52]} 29. Rf1 {[%emt 0:02:58]} h5 {[%emt 0:06:08]} 30. Rxb7 {[%emt 0:01:43]} Rde6 {[%emt 0:00:29]} 31. Rb5 {[%emt 0:03:39]} Re5 {[%emt 0:01:35]} 32. Rb6 {[%emt 0:06:44]} Qxa2 {[%emt 0:00:41]} 33. Qg5 {[%emt 0:01:11]} R5e6 {[%emt 0:01:54]} 34. Rxe6 {[%emt 0:02:05]} Qxe6 {[%emt 0:00:04]} 35. Rb1 {[%emt 0:00:08]} Ne5 {[%emt 0:01:14]} 36. Qg3 {[%emt 0:01:32]} Qa2 {[%emt 0:00:27]} 37. Rc1 {[%emt 0:00:35]} Nd3 {[%emt 0:01:16]} 38. Rf1 {[%emt 0:00:01]} Bg4 {[%emt 0:00:20]} 39. Kh1 {[%emt 0:00:34]} Qe2 {[%emt 0:00:45]} 40. Rb1 {[%emt 0:00:00]} Ne1 {[%emt 0:00:00]} 41. h3 {[%emt 0:16:13]} Bf3 {[%emt 0:05:34]} 42. Bxf3 {[%emt 0:00:02]} Qf1+ {[%emt 0:00:37]} 43. Kh2 {[%emt 0:00:01]} Nxf3+ {[%emt 0:00:10]} 44. Qxf3 {[%emt 0:00:04]} Qxb1 {[%emt 0:00:07]} 45. Qf6 {[%emt 0:00:07]} Qb8+ {[%emt 0:00:09]} 46. Bf4 {[%emt 0:00:26]} Qd8 {[%emt 0:01:03]} 47. Qc6 {[%emt 0:00:15]} Re6 {[%emt 0:00:07]} 48. Qc5 {[%emt 0:00:28]} Qf6 {[%emt 0:01:14]} 49. Qe3 {[%emt 0:00:16]} Qf5 {[%emt 0:01:00]} 50. Qg3 {[%emt 0:00:06]} Kh7 {[%emt 0:01:09]} 0-1

[Event "Asian Continental-ch Open 2019"]
[Site "XingTai"]
[Date "2019.06.09"]
[Round "3.12"]
[White "Lalith Babu M R"]
[Black "Zou, Chen"]
[Result "1/2-1/2"]
[ECO "E11"]
[WhiteElo "2571"]
[BlackElo "2415"]
[Annotator "RC"]
[PlyCount "65"]
[EventDate "2019.06.06"]
[EventType "swiss"]
[EventCountry "CHN"]
[SourceTitle "playchess.com"]
[Source "ChessBase"]
[SourceQuality "1"]
[TimeControl "40/5400+30:1800+30"]

1. d4 {[%emt 0:00:00]} Nf6 {[%emt 0:00:00]} 2. c4 {[%emt 0:00:00]} e6 {[%emt 0:00:00]} 3. Nf3 {[%emt 0:00:00]} d5 {[%emt 0:00:00]} 4. g3 {[%emt 0:00:00]} Bb4+ {[%emt 0:00:08]} 5. Bd2 {[%emt 0:00:00]} Be7 {[%emt 0:00:15]} 6. Bg2 {[%emt 0:00:03]} O-O {[%emt 0:00:11]} 7. O-O {[%emt 0:00:25]} c6 {[%emt 0:00:08]} 8. Qc2 {[%emt 0:00:15]} Nbd7 {[%emt 0:00:05]} 9. Rd1 {[%emt 0:00:08]} b6 {[%emt 0:00:38]} 10. b3 {[%emt 0:00:22]} Bb7 {[%emt 0:00:12]} 11. Nc3 {[%emt 0:00:08]} Rc8 {[%emt 0:00:03]} 12. e4 {[%emt 0:09:34]} dxe4 {[%emt 0:00:51]} 13. Nxe4 {[%emt 0:14:40]} c5 {[%emt 0:00:30]} 14. Nxf6+ {[%emt 0:00:52]} Nxf6 {[%emt 0:00:08]} 15. Bc3 {[%emt 0:08:09]} cxd4 {[%emt 0:16:12]} 16. Bxd4 {[%emt 0:08:24]} Be4 {[%emt 0:02:49]} 17. Qe2 {[%emt 0:03:34]} Qc7 {[%emt 0:01:31]} 18. Ne5 {[%emt 0:03:05]} Bxg2 {[%emt 0:01:49]} 19. Kxg2 {[%emt 0:00:03]} Rfd8 {[%emt 0:14:03]} 20. Bb2 {[%emt 0:01:14]} Nd7 {[%emt 0:10:20]} 21. Nxd7 {[%emt 0:02:51]} Rxd7 {[%emt 0:00:27]} 22. Rxd7 {[%emt 0:00:05]} Qxd7 {[%emt 0:00:15]} 23. Rd1 {[%emt 0:01:00]} Qc6+ {[%emt 0:01:42]} 24. Qf3 {[%emt 0:00:53]} Qxf3+ {[%emt 0:02:03]} 25. Kxf3 {[%emt 0:00:04]} Rc7 {[%emt 0:02:21]} 26. Be5 {[%emt 0:06:30]} Rb7 {[%emt 0:02:26]} 27. Ke2 {[%emt 0:02:34]} f6 {[%emt 0:00:49]} 28. Bd6 {[%emt 0:00:33]} Kf7 {[%emt 0:00:13]} 29. Bxe7 {[%emt 0:00:14]} Kxe7 {[%emt 0:00:05]} 30. Ke3 {[%emt 0:00:16]} Rc7 {[%emt 0:00:25]} 31. Rd2 {[%emt 0:01:00]} Rc8 {[%emt 0:01:51]} 32. Rd1 {[%emt 0:00:07]} Rc7 {[%emt 0:00:04]} 33. Ke4 {[%emt 0:39:27]} 1/2-1/2